fUSD/lending_fUSD_20240701
["ID","MTS","AMOUNT","RATE_DAILY","PERIOD"]
[330842188,1719855065667,-500.0,0.00021917,4]
[330842189,1719855065677,-500.0,0.00021917,4]
[330842190,1719855065688,-500.0,0.00021917,4]
[330842191,1719855065697,-500.0,0.00021917,4]
[330842192,1719855065707,-500.0,0.00021917,4]
[330842193,1719855065716,-500.0,0.00021917,4]
[330842194,1719855065726,-500.0,0.00021917,4]
[330842195,1719855065736,-500.0,0.00021917,4]
[330842196,1719855065745,-502.22861128,0.00021917,4]
[330842197,1719855065754,-448.55286228,0.00021917,4]
[330842198,1719855065765,-500.0,0.00021917,4]
[330842199,1719855065775,-500.0,0.00021917,4]
[330842200,1719855065785,-500.0,0.00021917,4]
[330842201,1719855065794,-496.19830175,0.00021917,4]
[330842202,1719855117178,70980.77127327,0.00011199,2]
[330842203,1719855117682,182132.42642655,0.00011199,2]
[330842208,1719855378815,1500.0,0.00011199,2]
[330842211,1719855428457,3732.42,0.00011199,2]
[330842215,1719855437110,3106.52214219,0.00011199,2]
[330842217,1719855456303,208.974074,0.00011199,7]
[330842219,1719855477131,2374.1385064,0.00011199,2]
[330842220,1719855500016,296.56181456,0.00011199,2]
[330842222,1719855655339,1500.0,0.00011199,2]
[330842223,1719855778489,155.10759368,0.00011199,2]
[330842224,1719855831343,690.00328514,0.00011199,2]
[330842226,1719855926490,523.44090366,0.00011199,2]
[330842227,1719855936342,1500.0,0.00011199,2]
[330842234,1719856007149,-430.72398408,0.00012273,2]
[330842235,1719856007169,-155.14087225,0.00012273,2]
[330842236,1719856007188,-182.2394226,0.00012273,2]
[330842237,1719856007212,-206.74904719,0.00012273,2]
[330842238,1719856007233,-2119.69625978,0.00013472,2]
[330842257,1719856233057,-764.12411624,0.00012302,2]
[330842258,1719856233069,-142.39282871,0.00012302,2]
[330842259,1719856233079,-517.9671284,0.00012302,2]
[330842260,1719856233088,-101.03498972,0.00013128,2]
[330842261,1719856233100,-429.15592799,0.00013128,2]
[330842262,1719856233109,-500.0,0.00014519,2]
[330842263,1719856233118,-500.0,0.00014519,2]
[330842264,1719856233127,-2658.37779306,0.00015535,2]
[330842265,1719856233224,-2726.15809268,0.00015535,2]
[330842266,1719856233234,-57.67892365,0.00015746,2]
[330842267,1719856233246,-115.86107635,0.00015746,2]
[330842268,1719856233255,-150.0,0.00015781,2]
[330842269,1719856233270,-180.42,0.00015804,2]
[330842270,1719856233279,-600.0,0.00016163,2]
[330842271,1719856233288,-500.0,0.00016163,2]
[330842272,1719856233298,-300.0,0.00016171,2]
[330842273,1719856233308,-206.12734629,0.00016329,2]
[330842274,1719856233318,-400.0,0.00017807,2]
[330842275,1719856233327,-421.74,0.00018057,2]
[330842276,1719856233337,-301.74096619,0.00018919,2]
[330842277,1719856233403,-227.0716558,0.0001935,2]
[330842278,1719856233413,-225.0,0.00019725,2]
[330842279,1719856233423,-150.23,0.00019774,2]
[330842280,1719856233432,-250.0,0.00019781,2]
[330842281,1719856233442,-388.80446992,0.00019876,2]
[330842282,1719856233454,-267.23393513,0.00019876,2]
[330842283,1719856233465,-343.96159495,0.00019876,2]
[330842284,1719856233474,-250.0,0.00019898,2]
[330842285,1719856233484,-250.0,0.00019907,2]
[330842286,1719856233493,-884.04712425,0.0002,3]
[330842287,1719856233522,-7028.89931554,0.0002,3]
[330842288,1719856233533,-1188.01585149,0.0002,3]
[330842290,1719856238241,-3661.32908948,0.0002,3]
[330842291,1719856238251,-155.0,0.0002,2]
[330842292,1719856238262,-448.06132112,0.0002,2]
[330842293,1719856238277,-879.75,0.00020013,30]
[330842294,1719856238287,-421.74,0.00020321,2]
[330842295,1719856238296,-381.991,0.00020343,2]
[330842296,1719856238305,-1000.0,0.00020628,2]
[330842297,1719856238317,-3580.786807,0.00020629,2]
[330842298,1719856238326,-3748.23242,0.00020629,2]
[330842299,1719856238336,-3420.769553,0.00020629,2]
[330842300,1719856238348,-628.18446,0.00020629,2]
[330842301,1719856238358,-177.154802,0.00020629,2]
[330842302,1719856238368,-685.390021,0.00020629,2]
[330842303,1719856238378,-820.188084,0.00020629,2]
[330842304,1719856238389,-2742.474992,0.00020629,2]
[330842305,1719856238399,-3062.842399,0.00020629,2]
[330842306,1719856238409,-2600.58147,0.00020629,2]
[330842307,1719856238419,-210.127355,0.00020629,2]
[330842308,1719856238430,-2926.0,0.000208,3]
[330842309,1719856238440,-3580.786807,0.00020887,2]
[330842310,1719856238450,-3748.23242,0.00020887,2]
[330842311,1719856238460,-3420.769553,0.00020887,2]
[330842312,1719856238469,-628.18446,0.00020887,2]
[330842313,1719856238480,-685.390021,0.00020887,2]
[330842314,1719856238490,-820.188084,0.00020887,2]
[330842315,1719856238500,-2742.474992,0.00020887,2]
[330842316,1719856238510,-3062.842399,0.00020887,2]
[330842317,1719856238521,-2600.58147,0.00020887,2]
[330842318,1719856238530,-210.127355,0.00020887,2]
[330842319,1719856238539,-1250.0,0.00021,2]
[330842320,1719856238550,-2500.0,0.000211,2]
[330842321,1719856238560,-3580.786807,0.00021145,2]
[330842322,1719856238570,-3748.23242,0.00021145,2]
[330842323,1719856238580,-3420.769553,0.00021145,2]
[330842324,1719856238590,-628.18446,0.00021145,2]
[330842325,1719856238600,-685.390021,0.00021145,2]
[330842326,1719856238610,-820.188084,0.00021145,2]
[330842327,1719856238620,-2742.474992,0.00021145,2]
[330842328,1719856238630,-3062.842399,0.00021145,2]
[330842329,1719856238640,-2600.58147,0.00021145,2]
[330842330,1719856238651,-210.127355,0.00021145,2]
[330842331,1719856238661,-154.70715655,0.00021392,2]
[330842332,1719856238671,-154.70715655,0.00021392,2]
[330842333,1719856238680,-154.70715655,0.00021392,2]
[330842334,1719856238690,-154.70715655,0.00021392,2]
[330842335,1719856238700,-154.70715655,0.00021392,2]
[330842336,1719856238710,-154.70715655,0.00021392,2]
[330842337,1719856238720,-154.70715655,0.00021392,2]
[330842338,1719856238730,-154.70715655,0.00021392,2]
[330842339,1719856238740,-154.70715655,0.00021392,2]
[330842340,1719856238749,-154.70715655,0.00021392,2]
[330842341,1719856238759,-154.70715655,0.00021392,2]
[330842342,1719856238770,-154.70715655,0.00021392,2]
[330842343,1719856238780,-3580.786807,0.00021403,2]
[330842345,1719856238791,-3748.23242,0.00021403,2]
[330842346,1719856238801,-3420.769553,0.00021403,2]
[330842348,1719856238811,-628.18446,0.00021403,2]
[330842350,1719856238821,-685.390021,0.00021403,2]
[330842352,1719856238832,-820.188084,0.00021403,2]
[330842354,1719856238842,-2742.474992,0.00021403,2]
[330842356,1719856238853,-3062.842399,0.00021403,2]
[330842359,1719856238863,-2600.58147,0.00021403,2]
[330842361,1719856238874,-210.127355,0.00021403,2]
[330842363,1719856238884,-151.0,0.00021543,2]
[330842364,1719856238895,-197.52,0.00021644,2]
[330842366,1719856238905,-626.11113668,0.00021644,2]
[330842368,1719856238915,-351.77,0.0002165,3]
[330842370,1719856238924,-154.70715655,0.00021651,2]
[330842372,1719856238934,-154.70715655,0.00021651,2]
[330842374,1719856238944,-154.70715655,0.00021651,2]
[330842376,1719856238954,-154.70715655,0.00021651,2]
[330842379,1719856238964,-154.70715655,0.00021651,2]
[330842381,1719856238975,-154.70715655,0.00021651,2]
[330842383,1719856238984,-154.70715655,0.00021651,2]
[330842384,1719856238994,-154.70715655,0.00021651,2]
[330842386,1719856239004,-154.70715655,0.00021651,2]
[330842388,1719856239013,-154.70715655,0.00021651,2]
[330842390,1719856239024,-3580.786807,0.0002166,2]
[330842392,1719856239035,-3748.23242,0.0002166,2]
[330842395,1719856239046,-3420.769553,0.0002166,2]
[330842397,1719856239056,-628.18446,0.0002166,2]
[330842399,1719856239066,-685.390021,0.0002166,2]
[330842401,1719856239076,-820.188084,0.0002166,2]
[330842403,1719856239086,-2742.474992,0.0002166,2]
[330842404,1719856239096,-3062.842399,0.0002166,2]
[330842406,1719856239106,-2600.58147,0.0002166,2]
[330842408,1719856239115,-210.127355,0.0002166,2]
[330842410,1719856239125,-724.30604,0.000217,2]
[330842412,1719856239135,-356.0,0.000217,2]
[330842414,1719856239146,-225.0,0.000217,2]
[330842416,1719856239157,-2199.5785,0.00021707,2]
[330842418,1719856239167,-198.0,0.0002171,3]
[330842420,1719856239178,-626.11113668,0.00021726,2]
[330842423,1719856239189,-500.0,0.00021741,2]
[330842425,1719856239199,-500.0,0.00021742,2]
[330842427,1719856239210,-500.0,0.00021742,2]
[330842429,1719856239220,-200.0,0.00021742,2]
[330842430,1719856239230,-317.63266499,0.00021796,2]
[330842433,1719856239241,-1000.0,0.00021802,2]
[330842435,1719856239251,-2151.27513965,0.00021806,2]
[330842436,1719856239261,-40428.5291,0.00021807,2]
[330842438,1719856239277,-321.44547856,0.00021817,2]
[330842440,1719856239287,-25000.0,0.00021817,2]
[330842442,1719856239296,-216.0,0.00021817,2]
[330842444,1719856239307,-174.08619548,0.00021817,2]
[330842446,1719856239318,-6304.65167224,0.00021817,2]
[330842448,1719856239329,-187.95847283,0.00021817,2]
[330842450,1719856239339,-4543.886403,0.00021817,2]
[330842452,1719856239353,-626.11113668,0.00021836,2]
[330842454,1719856239363,-2151.27513956,0.0002186,2]
[330842456,1719856239374,-151.0,0.00021862,2]
[330842458,1719856239384,-400.0,0.0002187,2]
[330842460,1719856239396,-401.56351853,0.0002187,2]
[330842461,1719856239406,-158.09,0.00021886,2]
[330842462,1719856239416,-48173.1638322,0.00021887,2]
[330842463,1719856239426,-25860.70976509,0.00021892,2]
[330842466,1719856239745,-4265.64500058,0.00021892,2]
[330842467,1719856239757,-2305.48794353,0.00021892,2]
[330842468,1719856239771,-1240.2756,0.00021892,2]
[330842469,1719856239782,-9058.96894871,0.00021892,2]
[330842470,1719856239794,-4488.32092168,0.00021892,2]
[330842471,1719856239821,-154.70715655,0.00021651,2]
[330842472,1719856239831,-384.47189825,0.00021892,2]
[330842473,1719856239843,-12542.42964342,0.00021892,2]
[330842474,1719856239855,-63594.74987856,0.00021892,2]
[330842475,1719856239867,-300.11965555,0.00021892,2]
[330842477,1719856239880,-1522.57839701,0.00021892,2]
[330842478,1719856239892,-51071.17639862,0.00021892,2]
[330842479,1719856239901,-2062.55427725,0.00021896,2]
[330842480,1719856240065,-154.70715655,0.00021651,2]
[330842481,1719856240075,-154.70715655,0.00021651,2]
[330842482,1719856240084,-154.70715655,0.00021651,2]
[330842483,1719856240095,-154.70715655,0.00021651,2]
[330842484,1719856240104,-78.71947867,0.00021697,2]
[330842485,1719856240455,7607.79450644,0.00012,2]
[330842486,1719856241002,-75.98767788,0.00021697,2]
[330842487,1719856241014,-154.70715655,0.00021697,2]
[330842488,1719856241026,-154.70715655,0.00021732,2]
[330842489,1719856241036,-114.59800902,0.00021792,2]
[330842490,1719856241139,-40.10914753,0.00021792,2]
[330842491,1719856241149,-154.70715655,0.00021796,2]
[330842492,1719856241159,-154.70715655,0.00021797,2]
[330842493,1719856241168,-154.70715655,0.00021797,2]
[330842494,1719856241177,-570.31938282,0.00021896,2]
[330842514,1719856243006,-154.70715655,0.00021797,2]
[330842516,1719856243015,-154.70715655,0.00021797,2]
[330842518,1719856243024,-154.70715655,0.00021797,2]
[330842520,1719856243033,-154.70715655,0.00021797,2]
[330842522,1719856243042,-154.70715655,0.00021797,2]
[330842524,1719856243051,-154.70715655,0.00021797,2]
[330842526,1719856243060,-154.70715655,0.00021797,2]
[330842528,1719856243070,-154.70715655,0.00021797,2]
[330842529,1719856243079,-60752.9391948,0.00021896,2]
[330842530,1719856243090,-1019.21467717,0.00021896,2]
[330842531,1719856243100,-8163.06022326,0.00021896,2]
[330842532,1719856243280,-154.70715655,0.00021797,2]
[330842533,1719856243290,-600.29284345,0.00021896,2]
[330842534,1719856243355,-5581.68562485,0.00021896,2]
[330842853,1719856246669,-154.70715655,0.00021797,2]
[330842856,1719856246682,-154.70715655,0.00021797,2]
[330842858,1719856246692,-154.70715655,0.00021797,2]
[330842860,1719856246701,-154.70715655,0.00021797,2]
[330842862,1719856246711,-154.70715655,0.00021797,2]
[330842864,1719856246720,-154.70715655,0.00021797,2]
[330842866,1719856246730,-154.70715655,0.00021797,2]
[330842868,1719856246739,-154.70715655,0.00021797,2]
[330842870,1719856246748,-154.70715655,0.00021797,2]
[330842872,1719856246757,-154.70715655,0.00021797,2]
[330842874,1719856246766,-154.70715655,0.00021797,2]
[330842876,1719856246775,-154.70715655,0.00021797,2]
[330842878,1719856246784,-154.70715655,0.00021797,2]
[330842880,1719856246794,-154.70715655,0.00021797,2]
[330842882,1719856246803,-168.19890099,0.00021817,2]
[330842884,1719856246812,-215.50579744,0.00021896,2]
[330842886,1719856246824,-1323.03436586,0.00021896,2]
[330842888,1719856246833,-325.88132241,0.000219,4]
[330842892,1719856246857,-154.70715655,0.00021797,2]
[330842894,1719856246867,-165.11867759,0.000219,4]
[330842896,1719856246876,-26.62323425,0.000219,4]
[330842898,1719856246887,-368.91735959,0.000219,4]
[330842907,1719856246976,-586.45940616,0.000219,4]
[330842908,1719856246985,-982.0,0.000219,4]
[330842909,1719856246994,-257.0,0.000219,2]
[330842910,1719856247003,-191.0,0.000219,4]
[330842911,1719856247013,-200.0,0.000219,4]
[330842912,1719856247022,-1003.12,0.000219,2]
[330842913,1719856247031,-624.3509,0.000219,2]
[330842914,1719856247040,-624.3509,0.000219,2]
[330842915,1719856247049,-150.0,0.000219,3]
[330842916,1719856247058,-275.697931,0.000219,2]
[330842917,1719856247067,-365.6,0.000219,13]
[330842918,1719856247076,-395.2447,0.000219,2]
[330842920,1719856247086,-395.2447,0.000219,2]
[330842922,1719856247096,-165.46569145,0.00021901,2]
[330842924,1719856247106,-1424.44476162,0.00021901,5]
[330842926,1719856247116,-151.0,0.00021902,2]
[330842928,1719856247125,-162.060796,0.00021902,2]
[330842930,1719856247134,-151.0,0.00021902,2]
[330842932,1719856247143,-151.0,0.00021902,2]
[330842934,1719856247153,-151.0,0.00021902,2]
[330842936,1719856247162,-151.0,0.00021902,2]
[330842938,1719856247171,-151.0,0.00021902,2]
[330842940,1719856247181,-151.0,0.00021902,2]
[330842942,1719856247190,-151.0,0.00021902,2]
[330842944,1719856247199,-151.0,0.00021902,2]
[330842946,1719856247209,-151.0,0.00021902,2]
[330842948,1719856247219,-185.64037,0.00021902,2]
[330842950,1719856247228,-185.64037,0.00021902,2]
[330842952,1719856247237,-203.019246,0.00021902,2]
[330842954,1719856247247,-151.0,0.00021902,2]
[330842956,1719856247256,-203.019246,0.00021902,2]
[330842958,1719856247267,-151.0,0.00021902,2]
[330842960,1719856247283,-151.0,0.00021902,2]
[330842962,1719856247294,-172.0,0.00021902,2]
[330842965,1719856247303,-151.0,0.00021902,2]
[330842967,1719856247314,-151.0,0.00021902,2]
[330842969,1719856247323,-151.0,0.00021902,2]
[330842971,1719856247333,-151.0,0.00021902,2]
[330842973,1719856247343,-151.0,0.00021902,2]
[330842974,1719856247354,-151.0,0.00021902,2]
[330842977,1719856247363,-307.462377,0.00021902,2]
[330842978,1719856247373,-307.462377,0.00021902,2]
[330842981,1719856247382,-151.0,0.00021902,2]
[330842982,1719856247391,-151.0,0.00021902,2]
[330842984,1719856247402,-151.0,0.00021902,2]
[330842986,1719856247412,-151.0,0.00021902,2]
[330842988,1719856247422,-622.161439,0.00021902,2]
[330842991,1719856247432,-622.161439,0.00021902,2]
[330842993,1719856247442,-49614.71768245,0.00021902,2]
[330842995,1719856247455,-7316.64315569,0.00021902,2]
[330843445,1719856422625,151.0,0.00020469,120]
[330843449,1719856666301,38023.65371108,0.00011199,2]
[330843450,1719856666325,50000.0,0.00011199,2]
[330843451,1719856666350,39000.0,0.00011199,2]
[330843452,1719856666377,38326.45623018,0.00011199,2]
[330843456,1719856849460,151.0,0.00020469,120]
[330843457,1719857135412,151.0,0.00020469,120]
[330843477,1719857433741,-684.44148417,0.00013574,2]
[330843478,1719857433751,-500.0,0.00014519,2]
[330843479,1719857433760,-90.93851583,0.00014519,2]
[330843480,1719857433771,-409.06148417,0.00014519,2]
[330843481,1719857433781,-400.0,0.00016163,2]
[330843482,1719857433790,-500.0,0.00016163,2]
[330843483,1719857433800,-1756.22630001,0.00016315,2]
[330843484,1719857434080,-495.41061931,0.00016315,2]
[330843485,1719857434092,-3528.09959666,0.00016315,2]
[330843486,1719857434103,-764.60626949,0.00016315,2]
[330843501,1719857438141,-1605.98,0.00016315,2]
[330843502,1719857438331,-571.38680162,0.00016315,2]
[330843503,1719857438340,-26.36819838,0.00017768,2]
[330843604,1719857440371,-394.53180162,0.00017768,2]
[330843605,1719857440381,-134.01649846,0.00017807,2]
[330843627,1719857443992,-165.98350154,0.00017807,2]
[330843628,1719857444002,-2377.87728637,0.00017925,2]
[330843629,1719857444012,-150.0,0.0001808,2]
[330843630,1719857444021,-2373.57182662,0.00018835,2]
[330843631,1719857444031,-208.77029203,0.00018835,2]
[330843632,1719857444041,-206.41287952,0.00018919,2]
[330843633,1719857444051,-2005.51481979,0.00018999,2]
[330843634,1719857444060,-500.0,0.000192,7]
[330843635,1719857444070,-227.0716558,0.00019299,2]
[330843636,1719857444079,-155.0,0.0001935,2]
[330843637,1719857444089,-388.42635038,0.0001935,2]
[330843638,1719857444098,-307.18748065,0.00019399,2]
[330843639,1719857444108,-1251.52373192,0.00019451,2]
[330843640,1719857444117,-150.23,0.00019523,2]
[330843641,1719857444127,-480.45260202,0.00019548,2]
[330843642,1719857444136,-482.87871356,0.00019565,2]
[330843643,1719857444145,-250.0,0.00019625,2]
[330843644,1719857444155,-176.96,0.00019673,2]
[330843645,1719857444164,-800.0,0.00019703,2]
[330843646,1719857444174,-170.76,0.00019709,2]
[330843647,1719857444183,-823.47,0.00019739,30]
[330843648,1719857444193,-243.93,0.00019804,2]
[330843649,1719857444202,-250.0,0.0001983,2]
[330843650,1719857444212,-519.35662507,0.00019863,2]
[330843651,1719857444222,-3255.71191391,0.00019997,2]
[330843652,1719857444231,-9526.48995506,0.0002,2]
[330843653,1719857444240,-420.9,0.00020032,2]
[330843654,1719857444249,-268.63,0.00020165,2]
[330843655,1719857444259,-177.51,0.00020183,2]
[330843656,1719857444268,-276.0,0.00020343,2]
[330843657,1719857444277,-155.0,0.00020469,2]
[330843658,1719857444286,-550.47298576,0.00020469,2]
[330843659,1719857444296,-448.06132112,0.00020469,2]
[330843660,1719857444305,-621.17472703,0.00020469,15]
[330843661,1719857444314,-581.33393112,0.00020469,2]
[330843662,1719857444323,-815.0,0.000206,3]
[330843663,1719857444332,-155.567476,0.00020629,2]
[330843664,1719857444341,-188.84,0.00020833,2]
[330843665,1719857444350,-179.8,0.00020863,2]
[330843666,1719857444359,-151.0,0.00020887,30]
[330843667,1719857444368,-1200.0,0.000212,2]
[330843668,1719857444378,-151.0,0.00021313,7]
[330843669,1719857444387,-2500.0,0.000214,2]
[330843670,1719857444396,-1000.0,0.00021405,2]
[330843671,1719857444406,-393.37866053,0.00021524,2]
[330843672,1719857444415,-508.05,0.00021534,2]
[330843673,1719857444424,-853.83,0.00021534,2]
[330843674,1719857444433,-853.83,0.00021534,2]
[330843675,1719857444443,-418.89,0.00021534,2]
[330843676,1719857444451,-418.89,0.00021534,2]
[330843677,1719857444461,-853.83,0.00021534,2]
[330843678,1719857444471,-853.83,0.00021534,2]
[330843679,1719857444480,-418.89,0.00021534,2]
[330843681,1719857444489,-418.89,0.00021534,2]
[330843682,1719857444499,-853.83,0.00021534,2]
[330843684,1719857444508,-490.49,0.00021534,2]
[330843686,1719857444517,-418.89,0.00021534,2]
[330843688,1719857444527,-418.89,0.00021534,2]
[330843689,1719857444536,-1139.0121,0.000216,2]
[330843690,1719857444545,-500.0,0.00021613,2]
[330843691,1719857444554,-500.0,0.00021623,2]
[330843692,1719857444563,-536.77,0.00021644,2]
[330843693,1719857444573,-300.0,0.00021671,2]
[330843694,1719857444582,-528.26,0.00021671,2]
[330843695,1719857444592,-150.0,0.00021671,2]
[330843696,1719857444601,-424.18,0.00021671,2]
[330843697,1719857444610,-150.0,0.00021671,2]
[330843698,1719857444619,-164.8,0.00021671,2]
[330843699,1719857444629,-150.0,0.00021671,2]
[330843700,1719857444639,-354.72,0.00021671,2]
[330843701,1719857444653,-424.18,0.00021671,2]
[330843702,1719857444662,-528.26,0.00021671,2]
[330843703,1719857444671,-164.8,0.00021671,2]
[330843704,1719857444681,-354.72,0.00021671,2]
[330843705,1719857444690,-150.0,0.00021671,2]
[330843706,1719857444699,-150.0,0.00021671,2]
[330843707,1719857444708,-150.0,0.00021671,2]
[330843708,1719857444717,-424.18,0.00021671,2]
[330843709,1719857444730,-528.26,0.00021671,2]
[330843710,1719857444741,-150.0,0.00021671,2]
[330843711,1719857444750,-354.72,0.00021671,2]
[330843712,1719857444760,-164.8,0.00021671,2]
[330843713,1719857444769,-150.0,0.00021671,2]
[330843714,1719857444778,-150.0,0.00021671,2]
[330843715,1719857444787,-150.0,0.00021671,2]
[330843716,1719857444796,-424.18,0.00021671,2]
[330843717,1719857444806,-528.26,0.00021671,2]
[330843718,1719857444816,-164.8,0.00021671,2]
[330843719,1719857444825,-150.0,0.00021671,2]
[330843720,1719857444834,-354.72,0.00021671,2]
[330843721,1719857444846,-417.08,0.00021671,2]
[330843722,1719857444855,-354.72,0.00021671,2]
[330843723,1719857444864,-150.0,0.00021671,2]
[330843724,1719857444874,-524.46,0.00021671,2]
[330843725,1719857444883,-163.75,0.00021671,2]
[330843726,1719857444892,-705.92,0.00021671,2]
[330843727,1719857444902,-603.58836,0.0002168,2]
[330843728,1719857444911,-212.257,0.00021702,2]
[330843729,1719857444920,-779.6816204,0.00021702,2]
[330843730,1719857444930,-18597.095,0.00021707,2]
[330843731,1719857444939,-238.6659,0.00021707,2]
[330843732,1719857444949,-299.4225,0.00021707,2]
[330843733,1719857444958,-779.68162033,0.00021736,2]
[330843734,1719857444968,-500.0,0.00021741,2]
[330843735,1719857444976,-500.0,0.00021742,2]
[330843736,1719857444985,-200.0,0.00021742,2]
[330843737,1719857444995,-151.0,0.00021748,4]
[330843738,1719857445004,-779.68162033,0.00021769,2]
[330843739,1719857445014,-172.41,0.00021776,2]
[330843740,1719857445023,-220.31,0.00021781,2]
[330843741,1719857445032,-183.81698288,0.00021792,2]
[330843742,1719857445042,-500.0,0.00021795,2]
[330843743,1719857445051,-1559.971896,0.000218,2]
[330843744,1719857445060,-216.0,0.00021802,2]
[330843745,1719857445069,-62429.7435,0.00021802,2]
[330843746,1719857445079,-6296.208,0.00021802,2]
[330843747,1719857445088,-500.0,0.00021802,2]
[330843748,1719857445097,-176.13900663,0.00021802,2]
[330843749,1719857445106,-2188.66370875,0.00021802,2]
[330843750,1719857445115,-779.68162033,0.00021803,2]
[330843751,1719857445125,-500.0,0.00021804,2]
[330843752,1719857445134,-2100.0,0.00021804,2]
[330843753,1719857445143,-300.0,0.00021804,2]
[330843754,1719857445152,-184.29208948,0.00021806,2]
[330843755,1719857445162,-164.65146801,0.00021807,2]
[330843756,1719857445171,-4157.2966,0.00021807,2]
[330843757,1719857445180,-500.0,0.00021813,2]
[330843758,1719857445190,-1000.0,0.00021816,5]
[330843759,1719857445199,-183.81698287,0.00021817,2]
[330843760,1719857445208,-1156.69519481,0.00021817,2]
[330843761,1719857445218,-4203.10111482,0.00021817,2]
[330843762,1719857445227,-500.0,0.00021822,2]
[330843763,1719857445236,-844.0,0.00021825,2]
[330843764,1719857445245,-500.0,0.0002183,2]
[330843765,1719857445254,-500.0,0.00021839,2]
[330843766,1719857445263,-500.0,0.00021848,2]
[330843767,1719857445273,-2188.66370864,0.00021856,2]
[330843768,1719857445282,-500.0,0.00021857,2]
[330843769,1719857445291,-500.0,0.00021866,2]
[330843770,1719857445300,-500.0,0.00021874,2]
[330843771,1719857445309,-500.0,0.00021883,2]
[330843772,1719857445318,-9938.55999861,0.00021886,2]
[330843773,1719857445328,-201.6,0.00021887,30]
[330843774,1719857445336,-150.5,0.00021887,30]
[330843775,1719857445346,-776.0,0.00021887,30]
[330843776,1719857445567,-3312.85333287,0.00021887,2]
[330843777,1719857445577,-216.0,0.00021887,30]
[330843778,1719857445587,-776.0,0.00021887,30]
[330843779,1719857445596,-1210.0,0.00021887,30]
[330843780,1719857445605,-156.75800946,0.00021887,2]
[330843781,1719857445615,-3312.85333287,0.0002189,2]
[330843782,1719857445624,-1000.0,0.00021891,5]
[330843783,1719857445634,-31398.323659,0.00021892,2]
[330843803,1719857446232,-779.68162033,0.00021836,2]
[330843804,1719857446241,-2181.36971867,0.00021892,2]
[330843805,1719857446252,-19155.87054366,0.00021892,2]
[330843806,1719857446450,-6345.9,0.00021892,2]
[330843809,1719857547571,151.0,0.00019938,120]
[330843823,1719857824210,151.0,0.00020545,120]
[330843829,1719858358510,151.0,0.00020287,120]
[330843852,1719858633769,-378.81,0.00018359,2]
[330843853,1719858633780,-1210.29,0.00018717,2]
[330843854,1719858633791,-504.46837256,0.00018717,2]
[330843855,1719858633801,-633.76,0.00018899,2]
[330843856,1719858633811,-227.0716558,0.00018999,2]
[330843857,1719858633820,-206.12734629,0.00018999,2]
[330843858,1719858633829,-1000.0,0.00019184,2]
[330843859,1719858633838,-500.0,0.000192,7]
[330843860,1719858633847,-1000.0,0.00019357,2]
[330843861,1719858633856,-155.0,0.00019399,60]
[330843862,1719858633865,-155.0,0.00019399,60]
[330843863,1719858633876,-1000.0,0.00019481,2]
[330843864,1719858633885,-1000.0,0.00019884,2]
[330843865,1719858633894,-779.91,0.00020251,30]
[330843866,1719858633904,-155.0,0.00020287,2]
[330843867,1719858633917,-581.33393112,0.00020287,2]
[330843868,1719858633927,-448.06132112,0.00020287,2]
[330843869,1719858633936,-7820.4880991,0.00020287,2]
[330843870,1719858633946,-550.47298576,0.00020287,2]
[330843871,1719858633955,-923.78,0.0002033,2]
[330843872,1719858633965,-250.0,0.00020368,2]
[330843873,1719858633975,-250.0,0.00020411,2]
[330843874,1719858633984,-179.8,0.00020432,2]
[330843875,1719858633994,-5735.54,0.00020509,2]